Cogmind - Beta 16 --- EXPLORER MODE // 2025.11.13 @ 14:47:59 Player: K.K.Y. Result: Destroyed by MF-13F(j) with Overtuned Pulse Rifle Performance ------------- Evolutions (0) 0 Regions Visited (4) 800 Robots Destroyed (31) 155 Value Destroyed (882) 882 Prototype IDs (15) 300 Alien Tech Used (0) 0 Bonus (2866) 2866 TOTAL SCORE: 5003 Bonus ------- Follower Combat Kills 66 Delivered SUBCON Basin 2000 Registered with UFD 300 Met Optimus in HQ 500 Cogmind --------- Core Integrity 0/250 Matter 300/300 Energy 265/265 System Corruption 0% Temperature Cool (17) Movement Walking (260) Ox2 Location -9/Scraptown Parts ------- > --- POWER (1) -------- Improved Ion Engine > --- PROPULSION (3) --- Improved Aluminum Leg > --- UTILITY (2) ------ Large Storage Unit Tech Extrapolator > --- WEAPON (2) ------- Companion Sword > --- INVENTORY (15) --- Scrap Suit Huge Storage Unit Humpback Active Sensor Suite IFF Parser Improved Terrain Scan Processor Surveybot 24 Chip Transport Network Coupler Improved Medium Laser Improved EM Pulse Cannon DRS Beacon (Ready) Peak State ------------ > --- POWER ------------ (None) > --- PROPULSION ------- Aluminum Leg Aluminum Leg Makeshift Leg > --- UTILITY ---------- Huge Storage Unit Authchip [Weapon] > --- WEAPON ----------- Battle Cannon Battle Cannon > --- INVENTORY -------- Improved Heat Sink Medium Storage Unit Structural Scanner Transport Network Coupler Scrap Shield Improved Medium Laser Improved Medium Laser Subdweller Machine Gun Datajack SUBCON Basin [Rating: 34] Favorites ----------- Power Improved Ion Engine Engine Improved Ion Engine Propulsion Aluminum Leg Treads Improved Treads Leg Aluminum Leg Wheel Wheel Hover Unit Hover Unit Flight Unit VTOL Module Utility Tech Extrapolator Device Seismic Detector Storage Huge Storage Unit Processor Tech Extrapolator Hackware Authchip [Weapon] Weapon Battle Cannon Energy Gun Improved Medium Laser Energy Cannon Beam Cannon Ballistic Cannon Battle Cannon Slashing Weapon Companion Sword Build | -11 -10 -10 -9 -9 ------- Run | Yrd Mat Sub Rec Scr Slots Evolved 1 | . 1 . . . Power . | . . . . . Propulsion 1 | . 1 . . . Utility . | . . . . . Weapon . | . . . . . Parts Attached 40 | 7 5 6 4 18 Power 4 | 1 1 . . 2 Engine 4 | 1 1 . . 2 Core . | . . . . . Reactor . | . . . . . Propulsion 20 | 2 1 2 2 13 Treads 2 | . . . . 2 Leg 11 | 2 1 2 2 4 Wheel 2 | . . . . 2 Hover 2 | . . . . 2 Flight 3 | . . . . 3 Utility 6 | 2 . 1 2 1 Device 1 | 1 . . . . Storage 3 | 1 . 1 . 1 Processor 1 | . . . 1 . Hackware 1 | . . . 1 . Protection . | . . . . . Artifact . | . . . . . Weapon 10 | 2 3 3 . 2 Energy Gun 4 | 2 2 . . . Energy Cannon 2 | . 1 1 . . Ballistic Gun . | . . . . . Ballistic Cannon 3 | . . 2 . 1 Launcher . | . . . . . Special Weapon . | . . . . . Impact Weapon . | . . . . . Slashing Weapon 1 | . . . . 1 Piercing Weapon . | . . . . . Special Melee Weapon . | . . . . . Unidentified Prototypes 2 | . 1 . . 1 Parts Lost 7 | . 1 3 1 2 Power 1 | . . . 1 . Propulsion 4 | . . 2 . 2 Utility 1 | . . 1 . . Weapon 1 | . 1 . . . Highest Loss Streak 2 | . 1 2 1 2 To Critical Strikes . | . . . . . Average Backups 11 | 1 5 8 8 13 Power . | . . . . . Propulsion . | . . . . . Utility 6 | . 2 4 4 7 Weapon 3 | . 1 3 3 4 Tool/Special . | . . . . . Unused Backups 25 | . . 2 1 22 Power 1 | . . . . 1 Propulsion . | . . . . . Utility 15 | . . 1 1 13 Weapon 7 | . . 1 . 6 Tool/Special 2 | . . . . 2 Average Slot Usage (%) 85 | . 90 93 81 82 Engine 10 | . 12 12 4 10 Treads 2 | . . . . 2 Leg 23 | . 28 31 36 19 Wheel 3 | . . . . 5 Hover 3 | . . . . 5 Device 2 | . 12 7 . . Storage 12 | . 12 15 12 12 Processor 8 | . . . 3 12 Energy Gun 3 | . 23 9 . . Energy Cannon 1 | . 1 5 . . Ballistic Cannon 12 | . . 9 25 12 Peak Build Rating 34 | 7 13 31 34 30 Average Rating 21 | 3 8 17 26 22 On Entrance 13 | . 7 13 29 18 Avg Prop Armor Cover (%) 18 | . . . . 18 Naked Turns . | . . . . . Heaviest Build 101 | 18 22 101 91 95 Greatest Support 47 | 20 30 40 40 47 Greatest Overweight (x) 31 | . . 5 4 31 Average Overweight (x) 1 | . . . 2 2 Largest Inventory Capacity 25 | 10 10 25 25 25 Average Capacity 19 | 7 10 14 25 20 Most Carried 25 | 5 10 25 25 25 Average Carried 16 | 1 5 14 19 17 Final Capacity 25 | 10 10 25 25 15 Final Carried 25 | . 10 25 8 15 Class Distribution -------------------- 73% | Commander-Mutant 26% | Hacker-Mutant Dominant Class ---------------- Hacker-Mutant | -10/Materials Hacker-Mutant | -10/Subcaves Commander-Mutant | -9/Recycling Commander-Mutant | -9/Scraptown Resources | -11 -10 -10 -9 -9 ----------- Run | Yrd Mat Sub Rec Scr Matter Collected 990 | 96 234 240 96 324 Remotely . | . . . . . Salvage Created 999 | . 366 394 41 198 Parts 51 | . 25 23 1 2 Haulers Intercepted 2 | . 2 . . . Recyclers Shooed . | . . . . . Parts Field Recycled . | . . . . . Retrieved Matter . | . . . . . Parts Self-Destructed . | . . . . . Prevented . | . . . . . Parts Restored . | . . . . . Kills | -11 -10 -10 -9 -9 ------- Run | Yrd Mat Sub Rec Scr Combat Hostiles Destroyed 24 | . 6 14 1 3 Melee 3 | . . . . 3 Guns 11 | . 5 6 . . Cannons 9 | . . 8 1 . AOE 1 | . 1 . . . Classes Destroyed 8 | . 4 2 . 2 Hauler 2 | . 2 . . . Turret 2 | . . 2 . . Watcher 3 | . 3 . . . Swarmer 7 | . 2 5 . . Grunt 7 | . 4 2 1 . Subdweller 7 | . . 7 . . Ranger 1 | . . . . 1 Scrapper 2 | . . . . 2 Best Kill Streak 6 | . 5 6 1 3 Combat Bots Only 4 | . 4 4 1 3 Max Kills in Single Turn 1 | . 1 1 1 1 Gunslinging . | . . . . . Exploded 1 | . 1 . . . Melee 1 | . . . . 1 Uniques/NPCs Destroyed . | . . . . . Combat | -11 -10 -10 -9 -9 -------- Run | Yrd Mat Sub Rec Scr Hostile Shots Fired 218 | . 28 137 10 43 Missed 66 | . 8 50 1 7 Hits 152 | . 20 87 9 36 Projectile 152 | . 20 87 9 36 AOE 5 | . . 5 . . Critical Strikes 5 | . . 2 1 2 Damage Taken 1406 | . 151 869 67 319 Core 256 | . 31 151 8 66 Absorbed by Shields 18 | . . . 10 8 Ignored by Resistances 826 | . 93 484 46 203 Core Remaining (%) 100 | 100 . . . . Volleys Fired 86 | . 21 57 8 . Largest 2 | . 2 2 2 . Hottest 116 | . 90 116 66 . Shots Fired 172 | . 42 114 16 . Gun 96 | . 42 54 . . Cannon 76 | . . 60 16 . Launcher . | . . . . . Special . | . . . . . Kinetic 57 | . . 41 16 . Thermal 94 | . 21 73 . . Explosive . | . . . . . Electromagnetic 21 | . 21 . . . Robot Hit Streak 30 | . 7 30 10 . Robot Miss Streak 1 | . 1 1 1 . Penetration Max . | . . . . . Secondary Targets 1 | . 1 . . . Max Gunslinging Chain 1 | . 1 . . . Shots Hit Robots 130 | . 31 78 13 8 Core Hits 45 | . 16 24 3 2 Critical Kills . | . . . . . Critical Parts Destroyed . | . . . . . Critical Strikes 12 | . 2 8 2 . Burn 7 | . 2 5 . . Blast 5 | . . 3 2 . Melee Attacks 9 | . . . . 9 Impact . | . . . . . Slashing 9 | . . . . 9 Piercing . | . . . . . Sneak Attacks 1 | . . . . 1 Combat Hostiles 1 | . . . . 1 Follow-up Attacks . | . . . . . Damage Inflicted 2533 | . 505 1371 332 325 Guns 1004 | . 392 612 . . Cannons 1086 | . . 759 327 . Explosions 103 | . 103 . . . Melee 325 | . . . . 325 Ramming 15 | . 10 . 5 . Kinetic 909 | . . 582 327 . Thermal 1103 | . 314 789 . . Explosive . | . . . . . Electromagnetic 181 | . 181 . . . Impact . | . . . . . Slashing 325 | . . . . 325 Piercing . | . . . . . Highest Corruption . | . . . . . Average Corruption . | . . . . . Corruption Purged . | . . . . . Corruption Blocked . | . . . . . Overload Shots . | . . . . . Overflow Damage 38 | . . . 20 18 Projectiles 20 | . . . 20 . Explosions . | . . . . . Melee 18 | . . . . 18 Knockbacks 10 | . . 7 3 . Impact . | . . . . . Kinetic 10 | . . 7 3 . Secondary . | . . . . . Self-Inflicted Damage . | . . . . . Shots . | . . . . . Rammed . | . . . . . Targets Rammed 3 | . 1 1 1 . Kicked 3 | . 1 1 1 . Crushed . | . . . . . Highest Temperature 240 | . 240 12 46 20 Average Temperature 65 | . 92 5 17 11 Received Heat Transfer 736 | . 126 273 53 284 Siege Activations . | . . . . . Martial Activations . | . . . . . Shielding Activations . | . . . . . Robots Disrupted . | . . . . . Combat Hostiles . | . . . . . Robots Corrupted . | . . . . . Combat Hostiles . | . . . . . Parts Fried 1 | . 1 . . . Impact Corruptions . | . . . . . Robots Melted . | . . . . . Combat Hostiles . | . . . . . Parts Melted 6 | . 2 1 . 3 Heat Transferred 2899 | . 827 2072 . . Parts Sabotaged . | . . . . . Parts Stolen . | . . . . . Parts Stripped . | . . . . . Power Chain Reactions 2 | . 2 . . . Alert | -11 -10 -10 -9 -9 ------- Run | Yrd Mat Sub Rec Scr Maximum Alert Level . | . . . . . Low Security (%) 100 | 100 100 . 100 . Level 1 . | . . . . . Level 2 . | . . . . . Level 3 . | . . . . . Level 4 . | . . . . . Level 5 . | . . . . . High Security . | . . . . . Max Security . | . . . . . Peak Influence 85 | . 85 . 21 . Initial 7 | . . . 7 . Average 5 | . 9 . 1 . Influence Increases 513 | . 205 235 73 . Destroy 0b10 Robot/C 360 | . 120 180 60 . Destroy 0b10 Robot/NC 25 | . 25 . . . Destroy Leader 50 | . 40 10 . . Allied During Kill 2 | . . . 2 . Successful Hack 20 | . 11 . 9 . Destroy Structure 11 | . 9 . 2 . Lose Combat Pursuer 45 | . . 45 . . Influence Decreases 513 | . 205 215 93 . Entered New Map 13 | . . . 13 . Time Decay 490 | . 205 205 80 . Lost Part 10 | . . 10 . . Squads Dispatched . | . . . . . Investigation . | . . . . . Extermination . | . . . . . Reinforcement . | . . . . . Assault . | . . . . . Garrison . | . . . . . Intercept . | . . . . . Searches Triggered . | . . . . . Construction Impeded . | . . . . . Haulers Reinforced . | . . . . . Active Scanning Responses . | . . . . . Cargo Convoy Interrupts . | . . . . . Stealth | -11 -10 -10 -9 -9 --------- Run | Yrd Mat Sub Rec Scr Distress Signals . | . . . . . Communications Jammed . | . . . . . Distress Signals . | . . . . . Times Spotted 35 | . 9 17 2 7 Peak Tracking Total 4 | . 2 3 1 4 Tactical Retreats 2 | . . 2 . . Traps | -11 -10 -10 -9 -9 ------- Run | Yrd Mat Sub Rec Scr Traps Triggered 3 | . 1 2 . . Indirectly . | . . . . . Trap Hack Attempts . | . . . . . Triggered . | . . . . . Disarmed . | . . . . . Reprogrammed . | . . . . . Reused . | . . . . . Traps Extracted . | . . . . . Installed . | . . . . . Triggered . | . . . . . Machines | -11 -10 -10 -9 -9 ---------- Run | Yrd Mat Sub Rec Scr Machines Disabled 3 | . . 2 . 1 Max in Single Turn 1 | . . 1 . 1 Machines Repaired . | . . . . . Machines Dismantled . | . . . . . Machines Sabotaged . | . . . . . Overloaded Fab Kills . | . . . . . Hacking | -11 -10 -10 -9 -9 --------- Run | Yrd Mat Sub Rec Scr Machines Accessed 12 | . 2 2 3 5 Terminals 3 | . 2 . 1 . Fabricators . | . . . . . Repair Stations . | . . . . . Recycling Units . | . . . . . Scanalyzers . | . . . . . Garrison Access . | . . . . . Total Hacks 53 | . 4 3 29 17 Successful 49 | . 3 3 26 17 Failed 4 | . 1 . 3 . Catastrophic . | . . . . . Database Lockouts . | . . . . . Manual . | . . . . . Terminals 9 | . 4 . 5 . Fabricators . | . . . . . Repair Stations . | . . . . . Recycling Units . | . . . . . Scanalyzers . | . . . . . Garrison Access . | . . . . . Terminal Hacks 49 | . 3 3 26 17 Record 40 | . . 1 24 15 Part Schematic 1 | . . . 1 . Open Door 2 | . . 1 . 1 Branch Access Points 1 | . . . 1 . Registered Components 1 | . 1 . . . Zone Layout 2 | . 2 . . . Proto ID Catalog 1 | . . . . 1 Release Object 1 | . . 1 . . Fabricator Hacks . | . . . . . Repair Station Hacks . | . . . . . Recycling Unit Hacks . | . . . . . Scanalyzer . | . . . . . Garrison Access Hacks . | . . . . . Unauthorized Hacks . | . . . . . Terminals . | . . . . . Fabricators . | . . . . . Repair Stations . | . . . . . Recycling Units . | . . . . . Scanalyzers . | . . . . . Garrison Access . | . . . . . Data Cores Recovered . | . . . . . Used . | . . . . . Hacking Detections 2 | . 1 . 1 . Full Trace Events 1 | . . . 1 . Feedback Events . | . . . . . Feedback Blocked . | . . . . . Robot Schematics Acquired . | . . . . . Robots Built . | . . . . . Authchips . | . . . . . Time . | . . . . . Total Robot Build Rating . | . . . . . Part Schematics Acquired 13 | . . . 1 12 Parts Built . | . . . . . Authchips . | . . . . . Time . | . . . . . Total Part Build Rating . | . . . . . Part Studies Acquired . | . . . . . Parts Repaired . | . . . . . Time . | . . . . . Parts Recycled . | . . . . . Recycled Matter . | . . . . . Retrieved Matter . | . . . . . Retrieved Components . | . . . . . Parts Scanalyzed . | . . . . . Part Schematics Acquired . | . . . . . Parts Damaged . | . . . . . Bothacking | -11 -10 -10 -9 -9 ------------ Run | Yrd Mat Sub Rec Scr Used RIF Installer . | . . . . . Robots Hacked . | . . . . . Non-combat . | . . . . . Combat . | . . . . . Robot Hacks Applied . | . . . . . Relay Couplers Released . | . . . . . Fabnet Peak Effective % . | . . . . . Robots Rewired 7 | . . . 7 . Allies Hacked . | . . . . . Hacks Repelled . | . . . . . Allies | -11 -10 -10 -9 -9 -------- Run | Yrd Mat Sub Rec Scr Total Allies 7 | . . . 7 . Largest Group 7 | . . . 7 7 Highest-Rated Group 113 | . . . 113 113 Highest-Rated Ally 27 | . . . 27 27 Total Orders . | . . . . . Ally Attacks 15 | . . . 5 10 Total Damage 418 | . . . 135 283 Kills 2 | . . . 2 . Allies Corrupted . | . . . . . Allies Melted 1 | . . . . 1 Intel | -11 -10 -10 -9 -9 ------- Run | Yrd Mat Sub Rec Scr Active Infowar (turns) 2922 | 28 984 1910 . . Seismic 2922 | 28 984 1910 . . Robot Analysis Total . | . . . . . Derelict Logs Recovered 4 | . . 2 . 2 Drone Launches . | . . . . . Drone Recoveries . | . . . . . Exploration | -11 -10 -10 -9 -9 ------------- Run | Yrd Mat Sub Rec Scr Turns Passed 16015 | 44 984 3051 922 11014 Spaces Moved 6968 | 41 727 1851 305 4044 Core 31 | 25 . . . 6 Treads 486 | . . . . 486 Legs 5312 | 16 727 1851 305 2413 Wheels 100 | . . . . 100 Hover 815 | . . . . 815 Flight 224 | . . . . 224 Fastest Speed 50 | 50 120 120 266 100 Average Speed 217 | 77 120 154 268 260 Slowest Speed 1600 | 120 120 490 420 1600 Overloaded Moves . | . . . . . Propulsion Burnouts . | . . . . . Robots Hopped . | . . . . . Potential Cave-ins . | . . . . . Cave-ins Triggered . | . . . . . Exploration Rate (%) 62 | 3 95 87 35 93 Regions Visited 4 Branch Regions 3 Pre-discovered Areas 2 | . . 1 . 1 Known Exits Taken 4 | 1 1 1 1 . Unknown Exits Taken . | . . . . . Scrap Searched 15 | . . 4 . 11 Spaces Dug . | . . . . . Terrain Destroyed 12 | . 9 1 2 . Melee . | . . . . . Projectile 3 | . . 1 2 . AOE 9 | . 9 . . . Terrain Rammed . | . . . . . Walls Destroyed . | . . . . . Machines Disabled . | . . . . . Actions | -11 -10 -10 -9 -9 --------- Run | Yrd Mat Sub Rec Scr Total 7683 | 52 796 1936 393 4506 Wait 394 | . 25 6 18 345 Move 6964 | 40 726 1850 304 4044 Hop . | . . . . . Pick Up 54 | 5 14 3 1 31 Fast Attach 21 | 2 1 . 3 15 Attach 17 | 5 2 1 1 8 Detach 8 | . . 1 1 6 Swap 15 | . 3 6 . 6 Drop 53 | . 3 5 3 42 Fire 86 | . 21 57 8 . Melee 9 | . . . . 9 Ram . | . . . . . Kick 3 | . 1 1 1 . Crush . | . . . . . Escape Stasis . | . . . . . Rewire 59 | . . 6 53 . Trap . | . . . . . Miscellaneous . | . . . . . Route ------- -11/Scrapyard -10/Materials (discovered 6 exits: *Mat x3 / *Min x2 / *Sub) -10/Subcaves (discovered 3 exits: *Mat x2 / *Rec) -9/Recycling -9/Scraptown (discovered 2 exits: *Fac x2) History --------- Turn | Location | Event 10 | -11/Scrapyard | Identified exit to Materials 10 | -11/Scrapyard | Discovered exit to Materials (range 14) 45 | -11/Scrapyard | Entered Materials 45 | -10/Materials | Evolved 1 slot: Propulsion x1 154 | -10/Materials | Identified exit to Materials 154 | -10/Materials | Discovered exit to Materials (range 15) 303 | -10/Materials | Identified exit to Mines 303 | -10/Materials | Discovered exit to Mines (range 6) 318 | -10/Materials | Build established: Hacker-Mutant 344 | -10/Materials | Discovered exit to Materials (range 9) 449 | -10/Materials | Discovered exit to Materials (range 4) 706 | -10/Materials | Discovered exit to Mines (range 8) 1020 | -10/Materials | Identified exit to Subcaves 1020 | -10/Materials | Discovered exit to Subcaves (range 9) 1029 | -10/Materials | Entered Subcaves 1114 | -10/Subcaves | A swath of the cavern ceiling suddenly collapsed 1340 | -10/Subcaves | Curiously followed by a Cobbler waking with a query about "LVR3C" 1411 | -10/Subcaves | Learned Materials emergency access door positions 1651 | -10/Subcaves | Identified exit to Materials 1651 | -10/Subcaves | Discovered exit to Materials (range 8) 2138 | -10/Subcaves | Discovered exit to Materials (range 12) 2443 | -10/Subcaves | A swath of the cavern ceiling suddenly collapsed 2525 | -10/Subcaves | Learned location of Zion (-7) 2525 | -10/Subcaves | Met a Zionite searching for "candidates" 2920 | -10/Subcaves | Disturbed a concealed Subdweller 2923 | -10/Subcaves | Disturbed a concealed Subdweller 2934 | -10/Subcaves | Ambushed by Subdweller buried in earth 3093 | -10/Subcaves | Found SUBCON Basin 3503 | -10/Subcaves | Core integrity fell below 50% 3940 | -10/Subcaves | Identified exit to Recycling 3940 | -10/Subcaves | Discovered exit to Recycling (range 8) 4080 | -10/Subcaves | Entered Recycling 4081 | -9/Recycling | Joined Warlord attack on 0b10 via Recycling 4508 | -9/Recycling | Build established: Commander-Mutant 4660 | -9/Recycling | Scanned before Scraplab entrance 4697 | -9/Recycling | Entered Scraplab 4997 | -9/Recycling | Identified exit to Scraptown 4997 | -9/Recycling | Discovered exit to Scraptown (range 3) 5002 | -9/Recycling | Entered Scraptown 5002 | -9/Scraptown | Accompanied by 7 allies 5229 | -9/Scraptown | Heard Great Nut preacher, LISTEN AND RECITE! 5708 | -9/Scraptown | Identified exit to Factory 5708 | -9/Scraptown | Discovered exit to Factory (range 13) 5833 | -9/Scraptown | Scanned Subdweller tech in exchange for log data 5841 | -9/Scraptown | Learned Research terminal intel 5843 | -9/Scraptown | Learned location of Quarantine (-3) 6008 | -9/Scraptown | Visited Symbiants 6099 | -9/Scraptown | Visited Science Testing Area 6131 | -9/Scraptown | Visited Bundlers 6320 | -9/Scraptown | Visited SPCMW 6324 | -9/Scraptown | Tech Extrapolator generated special schematic: Machine Rigger 6424 | -9/Scraptown | Visited UFD Registry 6424 | -9/Scraptown | Registered with UFD as "Flexitorch" 6451 | -9/Scraptown | Visited Shadow of the Wyrm 6537 | -9/Scraptown | Visited Junk Repository 6553 | -9/Scraptown | Tech Extrapolator generated special schematic: Deep Structural Scanner 6710 | -9/Scraptown | Visited DA-N13 Charitable Foundation 6734 | -9/Scraptown | Found DCF Scrap (29 items) 6862 | -9/Scraptown | Visited Curators Association 6938 | -9/Scraptown | Visited Scrap Suit Storage 6950 | -9/Scraptown | Found Scrap Suit 6991 | -9/Scraptown | Visited Scrapoid Pod Storage 7021 | -9/Scraptown | Visited Research Penetration Think Tank 7071 | -9/Scraptown | Visited Infowarlord's Domain 7085 | -9/Scraptown | Found Active Sensor Suite 7140 | -9/Scraptown | Visited Botcube Research 7180 | -9/Scraptown | Visited Science Guys 7260 | -9/Scraptown | Visited Derelict Rescue Squad 7278 | -9/Scraptown | Found DRS Beacon 7481 | -9/Scraptown | Visited Sword Containment 7501 | -9/Scraptown | Found Prototype Slashing Weapon 7848 | -9/Scraptown | Delivered Scrap Shield to a Scientist 8989 | -9/Scraptown | Guru changed UFD alias to "Railbay" 13428 | -9/Scraptown | Discovered exit to Factory (range 5) 15503 | -9/Scraptown | Met Optimus 15503 | -9/Scraptown | Accepted into 0bPrime 15903 | -9/Scraptown | Civil war broke out across Scraptown 15907 | -9/Scraptown | Identified Companion Sword 15913 | -9/Scraptown | Found Surveybot 24 Chip 15938 | -9/Scraptown | Lost 3 allies 15985 | -9/Scraptown | Found Scrap Suit 16002 | -9/Scraptown | Core integrity fell below 20% 16016 | -9/Scraptown | Destroyed by MF-13F(j) with Overtuned Pulse Rifle Last Messages --------------- 15989_ Bolt penetrates Wall. 15993_ Sneak attack on 56-B5X(h). 15993_ Destroyed Airjet. 15993_ Bolt Gun melted. 15993_ Airjet melted. 15993_ 56-B5X(h) destroyed. 15996_ WP-FBB(j) destroyed. 15998_ Mak. Leg destroyed. 16001_ 0T-JQ6(j) destroyed. 16002_ Penetrated by Bolt. 16002_ Savior 2a destroyed. 16004_ Critical hit (Burn: +50). 16004_ Acquired 92 matter. 16005_ Penetrated by Bolt. 16008_ MF-13F(j) heat damages Mak. Salvage Targeting Computer. 16008_ Critical hit (Burn: +50). 16010_ Penetrated by Bolt. 16011_ Imp. Aluminum Leg destroyed. 16012_ Penetrated by Bolt. Map ----- +----------------------------------------------------+ | | | | | | | | | | | | | | | | | ?????????????????????????????????????????????????? | | ?????????????????????????????????????????????????? | | ?????????????????????????????????????????????????? | | ?????????????????????????????????????????????????? | | ?????????????????????????????????????????????????? | | ?????????????????????????????????????????????????? | | ?????????????????????????????????????????????????? | | ?????????????????????????????????????????????????? | | ?????????????????????????????????????????????????? | | ?????????????????????????????????????????????????? | | ?????????????????????????????????????????????????? | | ??????????????????????????????#####??????????????? | | ??????????????????????????????#"""#??????????????? | | #??###############???####?????#" "#??????????????? | | ""?#"""##""|##"""#?###!=##????# < #??????????????? | | " ##"" ##"" ##!! ###; =!=######![=##?????????????? | | " !% ==[=!jh%%%j!*=!#?????????????? | | = %*==!@%!![g!*=[#?????????????? | | #####################!k*[##;########?????????????? | | ????????????????????##!l##???????????????????????? | | ?????????????????????#!!###########??????????????? | | ######???????????????#* # #??????????????? | | "! "???????????????#= # #??????????????? | | " "#???????????????# # #??????????????? | | # X####????????????# # #??????????????? | | "! "#????????????# # #??????????????? | | "! !"#??########### # #??????????????? | | "! "#??# """""""## ##### #####??????????????? | | "! !"#??#" ! "## ####X ####???????????????? | | " "#??#" "## ## #???????????????? | | # ##??#" "## ## #???????????????? | | #??#" "## ## #???????????????? | | #### ####??##### #####=[## #######???????????????? | | #### ########### #####![## ###########???????????? | | """" """"""""""" """!!%"" ## " """"#???????????? | | *!%! *["## ""#???????????? | | !=!!%!"## "#???????????? | | ! ## ""#???????????? | | =## ""#???????????? | | %!%= ""#???????????? | | """""""""""""""""""""" %=!"## """"""#???????????? | | """"""""""""""""""""" [*%"##"""""""#???????????? | +----------------------------------------------------+ Best States ------------- Heat Dissipation 25 Energy Generation 12 Energy Capacity 265 Matter Stores 300 Matter Capacity 300 Sight Range 16 Terrain Scan Density 10 Resistance: KI 35 Resistance: TH 35 Resistance: EX 35 Resistance: EM 35 Resistance: I 35 Resistance: S 35 Resistance: P 35 Evasion (%) 55 Recoil Reduction 2 Offensive Hacking 20 Item Schematics ----------------- Rocket Launcher | -9/Recycling | Hacked Spk. Treads | -9/Scraptown | Extrapolated Barrage Gun | -9/Scraptown | Extrapolated Mak. Coolant Network | -9/Scraptown | Extrapolated Machine Rigger | -9/Scraptown | Extrapolated Mak. Leg | -9/Scraptown | Extrapolated Deep Structural Scanner | -9/Scraptown | Extrapolated Mak. Core Shielding | -9/Scraptown | Extrapolated Mak. Light Armor Plating | -9/Scraptown | Extrapolated Mak. Laser | -9/Scraptown | Extrapolated Mak. Terrain Scan Processor | -9/Scraptown | Extrapolated Lgt. Humpback | -9/Scraptown | Extrapolated 0b10 Decoder Chip [Skirmisher] | -9/Scraptown | Extrapolated Robot Schematics ------------------ None Fabricated ------------ Nothing Repaired ---------- Nothing Studied --------- None Alien Tech Used ----------------- None Achievements -------------- Inventory Pressure Universal Adapter Challenges ------------ None Game ------ Seed AngularInsulationCleaver Manual? 0 Play Time 00:49:19 Cumulative 87.6 hours Start 2025.11.13 @ 13:59:23 End 2025.11.13 @ 14:47:59 Sessions 1 Manual Loads 0 Difficulty Explorer Special Mode None Game No. 88 Rogue 0 Adventurer 0 Explorer 88 Win Type - Total 0 Types 0/0/0/0/0/0/0/0/0/0 Lore% 56 Gallery% 55 Achievement% 44 Wizard Run 0 Options --------- Layout 1 ASCII 0 Keyboard 0 Movement Mouse Keybinds 0 Fullscreen 1 Font 24/Smallcaps Map View 50x35 Zoom Use 0% Tactical HUD 1 Map Filters NONE Filters NONE Steam 1 RUN: 5f1472d6-cab6-49c5-be82-818c36776c9c